[Event "Titled Tuesday Blitz March 14 Early 2023"]
[White "Domingo Nunez, Alejandro"]
[Black "ritanovikova"]
[WhiteFideId "22245561"]
[WhiteElo "2230"]
[BlackElo "2166"]
[Result "1-0"]
[Round "09"]
[TimeControl "180+2"]
[Date "2023.03.14"]
[WhiteClock "0:00:30"]
[BlackClock "0:00:12"]

1. e4 {[%clk 0:03:00]}  d5 {[%clk 0:02:58]} 2. exd5 {[%clk 0:02:58]}  Qxd5 {[%clk 0:02:59]} 3. Nc3 {[%clk 0:02:58]}  Qd6 {[%clk 0:02:59]} 4. d4 {[%clk 0:02:57]}  Nf6 {[%clk 0:02:59]} 5. Nf3 {[%clk 0:02:57]}  a6 {[%clk 0:02:58]} 6. g3 {[%clk 0:02:58]}  Bg4 {[%clk 0:02:57]} 7. Bg2 {[%clk 0:02:57]}  Nc6 {[%clk 0:02:57]} 8. h3 {[%clk 0:02:53]}  Bh5 {[%clk 0:02:53]} 9. Bf4 {[%clk 0:02:51]}  Qb4 {[%clk 0:02:43]} 10. O-O {[%clk 0:02:32]}  O-O-O {[%clk 0:02:38]} 11. g4 {[%clk 0:02:29]}  Nxg4 {[%clk 0:02:30]} 12. hxg4 {[%clk 0:02:20]}  Bxg4 {[%clk 0:02:30]} 13. Ne2 {[%clk 0:01:45]}  e5 {[%clk 0:02:08]} 14. Nxe5 {[%clk 0:01:45]}  Nxd4 {[%clk 0:02:00]} 15. Nxg4 {[%clk 0:01:44]}  Nf3+ {[%clk 0:02:00]} 16. Bxf3 {[%clk 0:01:44]}  Rxd1 {[%clk 0:01:59]} 17. Rfxd1 {[%clk 0:01:44]}  f6 {[%clk 0:01:43]} 18. Rd4 {[%clk 0:01:27]}  Qxb2 {[%clk 0:01:37]} 19. Rad1 {[%clk 0:01:27]}  Bc5 {[%clk 0:01:27]} 20. Rd7 {[%clk 0:01:21]}  Bb6 {[%clk 0:01:15]} 21. Rxg7 {[%clk 0:01:20]}  h5 {[%clk 0:01:06]} 22. Ne3 {[%clk 0:01:15]}  Rd8 {[%clk 0:00:47]} 23. Rxd8+ {[%clk 0:01:08]}  Kxd8 {[%clk 0:00:48]} 24. Nd5 {[%clk 0:01:08]}  f5 {[%clk 0:00:38]} 25. Bg5+ {[%clk 0:00:55]}  Ke8 {[%clk 0:00:36]} 26. Re7+ {[%clk 0:00:47]}  Kf8 {[%clk 0:00:36]} 27. Bh6+ {[%clk 0:00:46]}  Kg8 {[%clk 0:00:34]} 28. Rg7+ {[%clk 0:00:45]}  Kh8 {[%clk 0:00:30]} 29. Nef4 {[%clk 0:00:39]}  Bxf2+ {[%clk 0:00:27]} 30. Kg2 {[%clk 0:00:37]}  Qxg7+ {[%clk 0:00:18]} 31. Bxg7+ {[%clk 0:00:36]}  Kxg7 {[%clk 0:00:19]} 32. Nxh5+ {[%clk 0:00:33]}  Kg6 {[%clk 0:00:18]} 33. Kxf2 {[%clk 0:00:34]}  c6 {[%clk 0:00:15]} 34. Ne7+ {[%clk 0:00:34]}  Kg5 {[%clk 0:00:13]} 35. Ng7 {[%clk 0:00:32]}  Kf6 {[%clk 0:00:13]} 36. Ngxf5 {[%clk 0:00:33]}  c5 {[%clk 0:00:12]} 37. Bxb7 {[%clk 0:00:30]}  a5 {[%clk 0:00:12]} 38. Ke3 {[%clk 0:00:31]}  Ke5 {[%clk 0:00:12]} 39. Kd3 {[%clk 0:00:30]} 1-0


[Site "https://www.chess.com"]

[Event "Titled Tuesday Blitz March 14 Early 2023"]
[White "Odegov, Artem"]
[Black "Staudenhocker43"]
[WhiteFideId "34183644"]
[WhiteElo "2300"]
[BlackElo "2425"]
[Result "1/2-1/2"]
[Round "09"]
[TimeControl "180+2"]
[Date "2023.03.14"]
[WhiteClock "0:01:50"]
[BlackClock "0:01:57"]

1. d4 {[%clk 0:03:00]}  Nf6 {[%clk 0:02:59]} 2. c4 {[%clk 0:03:00]}  e6 {[%clk 0:03:00]} 3. Nf3 {[%clk 0:03:00]}  d5 {[%clk 0:02:59]} 4. Nc3 {[%clk 0:02:58]}  Bb4 {[%clk 0:02:59]} 5. Bg5 {[%clk 0:02:58]}  dxc4 {[%clk 0:02:59]} 6. e4 {[%clk 0:02:58]}  h6 {[%clk 0:03:00]} 7. Bxf6 {[%clk 0:02:56]}  Qxf6 {[%clk 0:03:00]} 8. Bxc4 {[%clk 0:02:55]}  c5 {[%clk 0:03:01]} 9. O-O {[%clk 0:02:53]}  cxd4 {[%clk 0:03:01]} 10. Nxd4 {[%clk 0:02:54]}  O-O {[%clk 0:03:01]} 11. Ndb5 {[%clk 0:02:48]}  Nc6 {[%clk 0:02:53]} 12. a3 {[%clk 0:02:46]}  Bxc3 {[%clk 0:02:50]} 13. Nxc3 {[%clk 0:02:46]}  Rd8 {[%clk 0:02:49]} 14. Qh5 {[%clk 0:02:36]}  b6 {[%clk 0:02:45]} 15. Rad1 {[%clk 0:02:34]}  Bb7 {[%clk 0:02:44]} 16. Ba2 {[%clk 0:02:24]}  Rxd1 {[%clk 0:02:36]} 17. Rxd1 {[%clk 0:02:25]}  Rd8 {[%clk 0:02:36]} 18. Rxd8+ {[%clk 0:02:19]}  Qxd8 {[%clk 0:02:37]} 19. Qd1 {[%clk 0:02:16]}  Qxd1+ {[%clk 0:02:35]} 20. Nxd1 {[%clk 0:02:17]}  Kf8 {[%clk 0:02:29]} 21. f3 {[%clk 0:02:16]}  Ke7 {[%clk 0:02:28]} 22. Kf2 {[%clk 0:02:15]}  Kd6 {[%clk 0:02:25]} 23. Ke3 {[%clk 0:02:13]}  f6 {[%clk 0:02:13]} 24. Nf2 {[%clk 0:02:06]}  Ne5 {[%clk 0:02:11]} 25. f4 {[%clk 0:02:04]}  Nd7 {[%clk 0:02:11]} 26. b4 {[%clk 0:02:01]}  a5 {[%clk 0:02:07]} 27. Nd3 {[%clk 0:02:00]}  Ba6 {[%clk 0:02:04]} 28. h4 {[%clk 0:01:43]}  Bxd3 {[%clk 0:01:50]} 29. Kxd3 {[%clk 0:01:44]}  axb4 {[%clk 0:01:50]} 30. axb4 {[%clk 0:01:44]}  e5 {[%clk 0:01:50]} 31. f5 {[%clk 0:01:44]}  b5 {[%clk 0:01:43]} 32. g4 {[%clk 0:01:36]}  Nb8 {[%clk 0:01:41]} 33. Bd5 {[%clk 0:01:32]}  Nc6 {[%clk 0:01:39]} 34. Bxc6 {[%clk 0:01:23]}  Kxc6 {[%clk 0:01:40]} 35. Ke3 {[%clk 0:01:23]}  Kd6 {[%clk 0:01:39]} 36. Kf3 {[%clk 0:01:24]}  Ke7 {[%clk 0:01:38]} 37. g5 {[%clk 0:01:24]}  h5 {[%clk 0:01:37]} 38. gxf6+ {[%clk 0:01:22]}  gxf6 {[%clk 0:01:37]} 39. Ke3 {[%clk 0:01:23]}  Kd6 {[%clk 0:01:37]} 40. Kd3 {[%clk 0:01:24]}  Kc6 {[%clk 0:01:37]} 41. Ke3 {[%clk 0:01:25]}  Kd6 {[%clk 0:01:38]} 42. Kf3 {[%clk 0:01:25]}  Kc6 {[%clk 0:01:38]} 43. Kg3 {[%clk 0:01:26]}  Kd6 {[%clk 0:01:38]} 44. Kh3 {[%clk 0:01:27]}  Kc6 {[%clk 0:01:38]} 45. Kh2 {[%clk 0:01:28]}  Kd6 {[%clk 0:01:37]} 46. Kg2 {[%clk 0:01:29]}  Kc6 {[%clk 0:01:37]} 47. Kf2 {[%clk 0:01:30]}  Kd6 {[%clk 0:01:37]} 48. Ke2 {[%clk 0:01:31]}  Kc6 {[%clk 0:01:38]} 49. Kd2 {[%clk 0:01:32]}  Kd6 {[%clk 0:01:39]} 50. Kd3 {[%clk 0:01:33]}  Kc6 {[%clk 0:01:40]} 51. Kc3 {[%clk 0:01:34]}  Kd6 {[%clk 0:01:40]} 52. Kc2 {[%clk 0:01:34]}  Kc6 {[%clk 0:01:41]} 53. Kb2 {[%clk 0:01:35]}  Kd6 {[%clk 0:01:42]} 54. Kb3 {[%clk 0:01:36]}  Kc6 {[%clk 0:01:43]} 55. Ka3 {[%clk 0:01:37]}  Kd6 {[%clk 0:01:44]} 56. Ka2 {[%clk 0:01:38]}  Kc6 {[%clk 0:01:45]} 57. Ka1 {[%clk 0:01:39]}  Kd6 {[%clk 0:01:46]} 58. Kb1 {[%clk 0:01:40]}  Kc6 {[%clk 0:01:47]} 59. Kc1 {[%clk 0:01:41]}  Kd6 {[%clk 0:01:48]} 60. Kd1 {[%clk 0:01:42]}  Kc6 {[%clk 0:01:49]} 61. Ke1 {[%clk 0:01:43]}  Kd6 {[%clk 0:01:49]} 62. Kf1 {[%clk 0:01:43]}  Kc6 {[%clk 0:01:50]} 63. Kg1 {[%clk 0:01:44]}  Kd6 {[%clk 0:01:51]} 64. Kh1 {[%clk 0:01:45]}  Kc6 {[%clk 0:01:52]} 65. Kh2 {[%clk 0:01:46]}  Kd6 {[%clk 0:01:53]} 66. Kh3 {[%clk 0:01:47]}  Kc6 {[%clk 0:01:54]} 67. Kg3 {[%clk 0:01:48]}  Kd6 {[%clk 0:01:55]} 68. Kf3 {[%clk 0:01:49]}  Kc6 {[%clk 0:01:56]} 69. Ke3 {[%clk 0:01:50]}  Kd6 {[%clk 0:01:57]} 1/2-1/2


[Site "https://www.chess.com"]

[Event "Titled Tuesday Blitz March 14 Early 2023"]
[White "Bochnicka, Vladimir"]
[Black "Garakov, Mikhael"]
[WhiteFideId "14943450"]
[BlackFideId "4169034"]
[WhiteElo "2094"]
[BlackElo "2347"]
[Result "1-0"]
[Round "09"]
[TimeControl "180+2"]
[Date "2023.03.14"]
[WhiteClock "0:00:34"]
[BlackClock "0:00:16"]

1. e4 {[%clk 0:02:37]}  c5 {[%clk 0:02:57]} 2. Nf3 {[%clk 0:02:36]}  e6 {[%clk 0:02:56]} 3. d4 {[%clk 0:02:36]}  cxd4 {[%clk 0:02:56]} 4. Nxd4 {[%clk 0:02:37]}  Nc6 {[%clk 0:02:56]} 5. Nc3 {[%clk 0:02:37]}  Qc7 {[%clk 0:02:56]} 6. Be3 {[%clk 0:02:34]}  a6 {[%clk 0:02:56]} 7. Qf3 {[%clk 0:02:34]}  d6 {[%clk 0:02:55]} 8. O-O-O {[%clk 0:02:34]}  Bd7 {[%clk 0:02:55]} 9. Qg3 {[%clk 0:02:27]}  b5 {[%clk 0:02:52]} 10. Ndxb5 {[%clk 0:02:21]}  axb5 {[%clk 0:02:50]} 11. Nxb5 {[%clk 0:02:21]}  Qb8 {[%clk 0:02:50]} 12. Nxd6+ {[%clk 0:02:21]}  Bxd6 {[%clk 0:02:51]} 13. Qxd6 {[%clk 0:02:21]}  Nf6 {[%clk 0:02:40]} 14. Qxb8+ {[%clk 0:02:03]}  Rxb8 {[%clk 0:02:39]} 15. f3 {[%clk 0:02:02]}  O-O {[%clk 0:02:29]} 16. e5 {[%clk 0:02:00]}  Nd5 {[%clk 0:02:28]} 17. Bc5 {[%clk 0:02:00]}  Rfc8 {[%clk 0:02:28]} 18. Bd6 {[%clk 0:01:58]}  Ra8 {[%clk 0:02:26]} 19. Kb1 {[%clk 0:01:57]}  Ne3 {[%clk 0:02:14]} 20. Rd3 {[%clk 0:01:52]}  Nxc2 {[%clk 0:02:10]} 21. Kxc2 {[%clk 0:01:25]}  Nb4+ {[%clk 0:02:07]} 22. Kb1 {[%clk 0:01:20]}  Nxd3 {[%clk 0:01:41]} 23. Bxd3 {[%clk 0:01:20]}  Ra5 {[%clk 0:01:31]} 24. b4 {[%clk 0:01:15]}  Rd5 {[%clk 0:01:29]} 25. Be4 {[%clk 0:01:12]}  Rd2 {[%clk 0:01:27]} 26. f4 {[%clk 0:01:12]}  Ba4 {[%clk 0:01:14]} 27. Bc5 {[%clk 0:01:05]}  Bc6 {[%clk 0:01:06]} 28. Bxc6 {[%clk 0:00:55]}  Rxc6 {[%clk 0:01:06]} 29. a4 {[%clk 0:00:56]}  Rxg2 {[%clk 0:00:58]} 30. Rd1 {[%clk 0:00:50]}  g5 {[%clk 0:00:57]} 31. fxg5 {[%clk 0:00:48]}  Rxg5 {[%clk 0:00:56]} 32. Bd6 {[%clk 0:00:36]}  Rg2 {[%clk 0:00:45]} 33. Rc1 {[%clk 0:00:37]}  Rxc1+ {[%clk 0:00:24]} 34. Kxc1 {[%clk 0:00:38]}  Rxh2 {[%clk 0:00:24]} 35. b5 {[%clk 0:00:38]}  Rh4 {[%clk 0:00:18]} 36. b6 {[%clk 0:00:36]}  Rc4+ {[%clk 0:00:16]} 37. Kb2 {[%clk 0:00:34]} 1-0


[Site "https://www.chess.com"]

[Event "Titled Tuesday Blitz March 14 Early 2023"]
[White "Turzo, Attila"]
[Black "Aanan, Shafiuddin"]
[WhiteFideId "704954"]
[BlackFideId "3242633"]
[WhiteElo "2519"]
[BlackElo "1648"]
[Result "1-0"]
[Round "09"]
[TimeControl "180+2"]
[Date "2023.03.14"]
[WhiteClock "0:01:43"]
[BlackClock "0:00:49"]

1. e4 {[%clk 0:03:00]}  c5 {[%clk 0:02:59]} 2. Nc3 {[%clk 0:03:00]}  d6 {[%clk 0:02:59]} 3. f4 {[%clk 0:03:00]}  Nc6 {[%clk 0:02:58]} 4. Bb5 {[%clk 0:02:59]}  Bd7 {[%clk 0:02:56]} 5. Nf3 {[%clk 0:02:59]}  g6 {[%clk 0:02:56]} 6. O-O {[%clk 0:02:59]}  Bg7 {[%clk 0:02:54]} 7. d3 {[%clk 0:02:57]}  e6 {[%clk 0:02:52]} 8. Bxc6 {[%clk 0:02:45]}  Bxc6 {[%clk 0:02:44]} 9. f5 {[%clk 0:02:45]}  Nf6 {[%clk 0:02:43]} 10. Kh1 {[%clk 0:02:39]}  O-O {[%clk 0:02:39]} 11. fxe6 {[%clk 0:02:38]}  fxe6 {[%clk 0:02:39]} 12. e5 {[%clk 0:02:35]}  Nd5 {[%clk 0:02:23]} 13. Ne4 {[%clk 0:02:26]}  dxe5 {[%clk 0:02:20]} 14. Nxc5 {[%clk 0:02:26]}  Nf4 {[%clk 0:02:18]} 15. Bxf4 {[%clk 0:02:22]}  exf4 {[%clk 0:02:09]} 16. Nxe6 {[%clk 0:02:22]}  Qd5 {[%clk 0:02:02]} 17. Nxf8 {[%clk 0:02:11]}  Rxf8 {[%clk 0:02:02]} 18. c3 {[%clk 0:02:11]}  g5 {[%clk 0:01:58]} 19. h3 {[%clk 0:02:04]}  h5 {[%clk 0:01:55]} 20. Qb3 {[%clk 0:02:04]}  g4 {[%clk 0:01:48]} 21. hxg4 {[%clk 0:01:58]}  hxg4 {[%clk 0:01:48]} 22. Ng5 {[%clk 0:01:52]}  Bh6 {[%clk 0:01:34]} 23. Qxd5+ {[%clk 0:01:50]}  Bxd5 {[%clk 0:01:33]} 24. Ne4 {[%clk 0:01:49]}  Rf5 {[%clk 0:01:24]} 25. Kg1 {[%clk 0:01:48]}  f3 {[%clk 0:01:21]} 26. gxf3 {[%clk 0:01:45]}  gxf3 {[%clk 0:01:18]} 27. Kf2 {[%clk 0:01:44]}  Kf7 {[%clk 0:00:49]} 28. Nd6+ {[%clk 0:01:43]} 1-0


[Site "https://www.chess.com"]

[Event "Titled Tuesday Blitz March 14 Early 2023"]
[White "Zarnicki, Pablo"]
[Black "Botez, Alexandra"]
[WhiteFideId "100137"]
[BlackFideId "2603365"]
[WhiteElo "2468"]
[BlackElo "2059"]
[Result "1-0"]
[Round "09"]
[TimeControl "180+2"]
[Date "2023.03.14"]
[WhiteClock "0:00:20"]
[BlackClock "0:00:02"]

1. d4 {[%clk 0:02:46]}  c5 {[%clk 0:02:58]} 2. a4 {[%clk 0:02:41]}  cxd4 {[%clk 0:02:55]} 3. Qxd4 {[%clk 0:02:39]}  Nc6 {[%clk 0:02:55]} 4. Qh4 {[%clk 0:02:39]}  Nf6 {[%clk 0:02:52]} 5. b4 {[%clk 0:02:34]}  a6 {[%clk 0:02:47]} 6. Bb2 {[%clk 0:02:33]}  e6 {[%clk 0:02:44]} 7. b5 {[%clk 0:02:31]}  axb5 {[%clk 0:02:36]} 8. axb5 {[%clk 0:02:32]}  Rxa1 {[%clk 0:02:36]} 9. Bxa1 {[%clk 0:02:33]}  Qa5+ {[%clk 0:02:33]} 10. Bc3 {[%clk 0:02:31]}  Qxb5 {[%clk 0:02:31]} 11. Nd2 {[%clk 0:02:27]}  Nd5 {[%clk 0:02:09]} 12. e4 {[%clk 0:02:17]}  Qa4 {[%clk 0:02:05]} 13. Bb2 {[%clk 0:02:09]}  Qb4 {[%clk 0:01:42]} 14. Bc1 {[%clk 0:01:47]}  Nd4 {[%clk 0:01:23]} 15. Bd3 {[%clk 0:01:39]}  Nf6 {[%clk 0:00:43]} 16. Nh3 {[%clk 0:01:21]}  Be7 {[%clk 0:00:41]} 17. O-O {[%clk 0:01:20]}  O-O {[%clk 0:00:37]} 18. Kh1 {[%clk 0:01:04]}  e5 {[%clk 0:00:37]} 19. f4 {[%clk 0:00:59]}  Nxe4 {[%clk 0:00:22]} 20. Qh5 {[%clk 0:00:42]}  d5 {[%clk 0:00:08]} 21. Nxe4 {[%clk 0:00:31]}  dxe4 {[%clk 0:00:07]} 22. Bxe4 {[%clk 0:00:32]}  f5 {[%clk 0:00:07]} 23. Bd5+ {[%clk 0:00:28]}  Be6 {[%clk 0:00:05]} 24. Ng5 {[%clk 0:00:19]}  Bxg5 {[%clk 0:00:04]} 25. Bxe6+ {[%clk 0:00:19]}  Nxe6 {[%clk 0:00:04]} 26. fxg5 {[%clk 0:00:20]}  g6 {[%clk 0:00:02]} 27. Qe2 {[%clk 0:00:20]} 1-0


[Site "https://www.chess.com"]

[Event "Titled Tuesday Blitz March 14 Early 2023"]
[White "Liu, Casper"]
[Black "Kopczynski, Michal"]
[WhiteFideId "1454153"]
[BlackFideId "1124200"]
[WhiteElo "2221"]
[BlackElo "2212"]
[Result "0-1"]
[Round "09"]
[TimeControl "180+2"]
[Date "2023.03.14"]
[WhiteClock "0:02:13"]
[BlackClock "0:01:12"]

1. d4 {[%clk 0:02:53]}  Nf6 {[%clk 0:03:00]} 2. c4 {[%clk 0:02:54]}  g6 {[%clk 0:03:00]} 3. Nc3 {[%clk 0:02:54]}  Bg7 {[%clk 0:03:01]} 4. Bg5 {[%clk 0:02:53]}  d6 {[%clk 0:03:01]} 5. Qd2 {[%clk 0:02:54]}  O-O {[%clk 0:03:01]} 6. O-O-O {[%clk 0:02:54]}  c6 {[%clk 0:02:59]} 7. f3 {[%clk 0:02:55]}  a6 {[%clk 0:03:00]} 8. h4 {[%clk 0:02:55]}  b5 {[%clk 0:02:59]} 9. cxb5 {[%clk 0:02:55]}  axb5 {[%clk 0:02:58]} 10. h5 {[%clk 0:02:54]}  b4 {[%clk 0:02:52]} 11. Ne4 {[%clk 0:02:54]}  Nxe4 {[%clk 0:02:44]} 12. fxe4 {[%clk 0:02:54]}  Rxa2 {[%clk 0:02:37]} 13. Bh6 {[%clk 0:02:52]}  Ra1+ {[%clk 0:02:33]} 14. Kc2 {[%clk 0:02:52]}  b3+ {[%clk 0:02:31]} 15. Kxb3 {[%clk 0:02:47]}  Rxd1 {[%clk 0:02:24]} 16. Qxd1 {[%clk 0:02:47]}  Bxh6 {[%clk 0:02:25]} 17. hxg6 {[%clk 0:02:47]}  Bg7 {[%clk 0:02:02]} 18. gxh7+ {[%clk 0:02:29]}  Kh8 {[%clk 0:02:01]} 19. e3 {[%clk 0:02:30]}  Be6+ {[%clk 0:01:57]} 20. Kc2 {[%clk 0:02:29]}  Qb6 {[%clk 0:01:56]} 21. Qd3 {[%clk 0:02:30]}  c5 {[%clk 0:01:38]} 22. Nf3 {[%clk 0:02:24]}  Nc6 {[%clk 0:01:34]} 23. Kd2 {[%clk 0:02:20]}  Qxb2+ {[%clk 0:01:32]} 24. Ke1 {[%clk 0:02:20]}  cxd4 {[%clk 0:01:30]} 25. Be2 {[%clk 0:02:19]}  Qc1+ {[%clk 0:01:24]} 26. Bd1 {[%clk 0:02:18]}  Qxe3+ {[%clk 0:01:24]} 27. Qxe3 {[%clk 0:02:18]}  dxe3 {[%clk 0:01:25]} 28. Ke2 {[%clk 0:02:19]}  Nd4+ {[%clk 0:01:23]} 29. Kxe3 {[%clk 0:02:19]}  Nxf3 {[%clk 0:01:22]} 30. gxf3 {[%clk 0:02:20]}  Rc8 {[%clk 0:01:19]} 31. f4 {[%clk 0:02:20]}  Rc3+ {[%clk 0:01:18]} 32. Kd2 {[%clk 0:02:19]}  Rh3 {[%clk 0:01:17]} 33. Rxh3 {[%clk 0:02:13]}  Bxh3 {[%clk 0:01:18]} 34. Bh5 {[%clk 0:02:12]}  Be6 {[%clk 0:01:12]} 35. f5 {[%clk 0:02:13]}  Ba2 {[%clk 0:01:12]} 36. Kc2 {[%clk 0:02:13]}  Kxh7 {[%clk 0:01:12]} 0-1


[Site "https://www.chess.com"]

[Event "Titled Tuesday Blitz March 14 Early 2023"]
[White "Perez Rodriguez, Jennifer"]
[Black "Manukian, Artak"]
[WhiteFideId "3507831"]
[BlackFideId "13301373"]
[WhiteElo "2170"]
[BlackElo "2130"]
[Result "0-1"]
[Round "09"]
[TimeControl "180+2"]
[Date "2023.03.14"]
[WhiteClock "0:00:15"]
[BlackClock "0:01:29"]

1. e4 {[%clk 0:02:46]}  c6 {[%clk 0:02:59]} 2. Nc3 {[%clk 0:02:45]}  d5 {[%clk 0:03:00]} 3. Nf3 {[%clk 0:02:45]}  dxe4 {[%clk 0:03:00]} 4. Nxe4 {[%clk 0:02:45]}  Nf6 {[%clk 0:03:01]} 5. Qe2 {[%clk 0:02:45]}  Nxe4 {[%clk 0:03:01]} 6. Qxe4 {[%clk 0:02:46]}  Qd5 {[%clk 0:03:01]} 7. Qxd5 {[%clk 0:02:42]}  cxd5 {[%clk 0:03:02]} 8. d4 {[%clk 0:02:42]}  Nc6 {[%clk 0:03:02]} 9. Bb5 {[%clk 0:02:41]}  Bd7 {[%clk 0:02:57]} 10. O-O {[%clk 0:02:39]}  e6 {[%clk 0:02:54]} 11. Re1 {[%clk 0:02:34]}  Bd6 {[%clk 0:02:50]} 12. c4 {[%clk 0:02:26]}  dxc4 {[%clk 0:02:44]} 13. Bxc4 {[%clk 0:02:10]}  Nb4 {[%clk 0:02:32]} 14. d5 {[%clk 0:01:54]}  Nc2 {[%clk 0:02:28]} 15. dxe6 {[%clk 0:01:54]}  Bxe6 {[%clk 0:02:23]} 16. Bb5+ {[%clk 0:01:10]}  Kf8 {[%clk 0:02:21]} 17. Rd1 {[%clk 0:01:10]}  Nxa1 {[%clk 0:02:10]} 18. Rxd6 {[%clk 0:01:08]}  Ke7 {[%clk 0:02:11]} 19. Rd1 {[%clk 0:00:47]}  Rhd8 {[%clk 0:02:08]} 20. Bg5+ {[%clk 0:00:46]}  f6 {[%clk 0:02:04]} 21. Rxa1 {[%clk 0:00:46]}  fxg5 {[%clk 0:02:01]} 22. Nxg5 {[%clk 0:00:45]}  Bf5 {[%clk 0:02:01]} 23. Re1+ {[%clk 0:00:44]}  Kf6 {[%clk 0:01:57]} 24. Nf3 {[%clk 0:00:42]}  Rac8 {[%clk 0:01:55]} 25. Ba4 {[%clk 0:00:33]}  Bc2 {[%clk 0:01:49]} 26. Bb5 {[%clk 0:00:24]}  a6 {[%clk 0:01:40]} 27. Bf1 {[%clk 0:00:20]}  Rd1 {[%clk 0:01:33]} 28. Rxd1 {[%clk 0:00:20]}  Bxd1 {[%clk 0:01:32]} 29. Nd4 {[%clk 0:00:20]}  Rd8 {[%clk 0:01:29]} 30. Ne2 {[%clk 0:00:14]}  Bxe2 {[%clk 0:01:29]} 31. Bxe2 {[%clk 0:00:14]}  Rd2 {[%clk 0:01:29]} 32. Bf3 {[%clk 0:00:15]}  Rxb2 {[%clk 0:01:29]} 0-1


[Site "https://www.chess.com"]

[Event "Titled Tuesday Blitz March 14 Early 2023"]
[White "Buscar, Michael"]
[Black "Shubenkova, Veronika"]
[WhiteFideId "2603616"]
[BlackFideId "44124040"]
[WhiteElo "2010"]
[BlackElo "2027"]
[Result "0-1"]
[Round "09"]
[TimeControl "180+2"]
[Date "2023.03.14"]
[WhiteClock "0:00:06"]
[BlackClock "0:00:06"]

1. Nf3 {[%clk 0:01:13]}  d5 {[%clk 0:02:59]} 2. b3 {[%clk 0:01:13]}  Nf6 {[%clk 0:02:59]} 3. Bb2 {[%clk 0:01:14]}  g6 {[%clk 0:03:00]} 4. e3 {[%clk 0:01:13]}  Bg7 {[%clk 0:03:00]} 5. c4 {[%clk 0:01:14]}  c6 {[%clk 0:03:00]} 6. cxd5 {[%clk 0:01:15]}  cxd5 {[%clk 0:03:00]} 7. Be2 {[%clk 0:01:16]}  O-O {[%clk 0:03:00]} 8. O-O {[%clk 0:01:16]}  Nc6 {[%clk 0:03:01]} 9. d3 {[%clk 0:01:16]}  Bd7 {[%clk 0:03:01]} 10. Nbd2 {[%clk 0:01:17]}  Rc8 {[%clk 0:03:01]} 11. a3 {[%clk 0:01:17]}  a6 {[%clk 0:03:01]} 12. Rc1 {[%clk 0:01:16]}  Nh5 {[%clk 0:03:01]} 13. Bxg7 {[%clk 0:01:15]}  Nxg7 {[%clk 0:03:02]} 14. Re1 {[%clk 0:01:15]}  e5 {[%clk 0:03:02]} 15. Nf1 {[%clk 0:01:14]}  Qe7 {[%clk 0:03:02]} 16. b4 {[%clk 0:01:13]}  Rfd8 {[%clk 0:03:02]} 17. Qb3 {[%clk 0:01:13]}  Be6 {[%clk 0:03:00]} 18. d4 {[%clk 0:01:13]}  e4 {[%clk 0:03:00]} 19. N3d2 {[%clk 0:01:12]}  Nb8 {[%clk 0:02:56]} 20. Qb2 {[%clk 0:01:09]}  Nd7 {[%clk 0:02:51]} 21. Nb3 {[%clk 0:01:09]}  Qg5 {[%clk 0:02:40]} 22. Nc5 {[%clk 0:01:06]}  Nxc5 {[%clk 0:02:40]} 23. bxc5 {[%clk 0:01:05]}  Rc7 {[%clk 0:02:39]} 24. Qb6 {[%clk 0:01:04]}  Rdc8 {[%clk 0:02:37]} 25. Rb1 {[%clk 0:01:00]}  h5 {[%clk 0:02:34]} 26. Qd6 {[%clk 0:00:55]}  h4 {[%clk 0:02:18]} 27. Rb2 {[%clk 0:00:53]}  h3 {[%clk 0:02:17]} 28. Qg3 {[%clk 0:00:50]}  Qh6 {[%clk 0:02:12]} 29. Bg4 {[%clk 0:00:41]}  hxg2 {[%clk 0:02:11]} 30. Qxg2 {[%clk 0:00:39]}  Nf5 {[%clk 0:02:06]} 31. Bxf5 {[%clk 0:00:34]}  Bxf5 {[%clk 0:02:06]} 32. Reb1 {[%clk 0:00:32]}  Rc6 {[%clk 0:01:10]} 33. Rxb7 {[%clk 0:00:31]}  g5 {[%clk 0:01:09]} 34. Qg3 {[%clk 0:00:29]}  Rf6 {[%clk 0:00:57]} 35. R1b6 {[%clk 0:00:27]}  Rcc6 {[%clk 0:00:56]} 36. Rxc6 {[%clk 0:00:24]}  Rxc6 {[%clk 0:00:57]} 37. Qb8+ {[%clk 0:00:23]}  Rc8 {[%clk 0:00:52]} 38. Qe5 {[%clk 0:00:22]}  Bh3 {[%clk 0:00:51]} 39. Qe7 {[%clk 0:00:18]}  Qh5 {[%clk 0:00:40]} 40. Qe5 {[%clk 0:00:10]}  Rf8 {[%clk 0:00:16]} 41. Rb1 {[%clk 0:00:10]}  Rd8 {[%clk 0:00:14]} 42. Qg3 {[%clk 0:00:10]}  Rc8 {[%clk 0:00:12]} 43. Nd2 {[%clk 0:00:09]}  Rc6 {[%clk 0:00:10]} 44. f3 {[%clk 0:00:09]}  Rf6 {[%clk 0:00:10]} 45. f4 {[%clk 0:00:09]}  Rg6 {[%clk 0:00:09]} 46. f5 {[%clk 0:00:09]}  Bxf5 {[%clk 0:00:10]} 47. Rb8+ {[%clk 0:00:07]}  Kh7 {[%clk 0:00:09]} 48. Qe5 {[%clk 0:00:07]}  Qg4+ {[%clk 0:00:09]} 49. Kf2 {[%clk 0:00:06]}  Rg7 {[%clk 0:00:07]} 50. Nf1 {[%clk 0:00:05]}  Qf3+ {[%clk 0:00:06]} 51. Kg1 {[%clk 0:00:05]}  Bh3 {[%clk 0:00:06]} 52. Qg3 {[%clk 0:00:06]}  Qxf1# {[%clk 0:00:06]} 0-1


[Site "https://www.chess.com"]